[Event "FIDE CB Open 2022"]
[Site "Ceske Budejovice"]
[Date "2022.07.02"]
[Round "2.47"]
[White "Ondrejat, Miroslav"]
[Black "Pavlis, Matej"]
[Result "1/2-1/2"]
[ECO "B83"]
[WhiteElo "1903"]
[BlackElo "1625"]
[Annotator "NA RC"]
[PlyCount "86"]
[EventDate "2022.07.01"]
[EventType "swiss"]
[EventCountry "CZE"]
[SourceTitle "playchess.com"]
[Source "ChessBase"]
[SourceQuality "1"]
[TimeControl "40/5400+30:1800+30"]

1. e4 {[%emt 0:00:16]} c5 {[%emt 0:00:18]} 2. Nf3 {[%emt 0:00:07]} e6 {[%emt 0:00:13]} 3. d4 {[%emt 0:00:35]} cxd4 {[%emt 0:00:16]} 4. Nxd4 {[%emt 0:00:00]} Nf6 {[%emt 0:00:18]} 5. Nc3 {[%emt 0:00:00]} d6 {[%emt 0:00:28]} 6. Be2 {[%emt 0:01:57]} Be7 {[%emt 0:01:14]} 7. O-O {[%emt 0:00:05]} O-O {[%emt 0:00:41]} 8. Kh1 {[%emt 0:01:22]} Nc6 {[%emt 0:01:45]} 9. Be3 {[%emt 0:01:45]} Bd7 {[%emt 0:02:46]} 10. f4 {[%emt 0:00:21]} Nxd4 {[%emt 0:01:38]} 11. Qxd4 {[%emt 0:00:48]} Bc6 {[%emt 0:02:03]} 12. Rad1 {[%emt 0:02:35]} Qc7 {[%emt 0:02:24]} 13. Bf3 {[%emt 0:06:44]} Rfd8 {[%emt 0:06:24]} 14. a4 {[%emt 0:15:17]} Nd7 {[%emt 0:10:25]} 15. Qd2 {[%emt 0:06:01]} Nb6 {[%emt 0:05:25]} 16. b3 {[%emt 0:04:31]} Rac8 {[%emt 0:06:07]} 17. Ne2 {[%emt 0:10:16]} Nd7 {[%emt 0:09:40]} 18. Nd4 {[%emt 0:07:21]} Nc5 {[%emt 0:16:09]} 19. Nb5 {[%emt 0:23:25]} Bxb5 {[%emt 0:01:46]} 20. axb5 {[%emt 0:00:07]} Bf6 {[%emt 0:10:30]} 21. Qb4 {[%emt 0:05:06]} a5 {[%emt 0:07:23]} 22. bxa6 {[%emt 0:01:15]} Nxa6 {[%emt 0:00:10]} 23. Qb6 {[%emt 0:02:05]} Qxc2 {[%emt 0:01:04]} 24. e5 {[%emt 0:04:42]} dxe5 {[%emt 0:01:35]} 25. Rxd8+ {[%emt 0:00:25]} Bxd8 {[%emt 0:05:45]} 26. Qxb7 {[%emt 0:00:10]} Nb8 {[%emt 0:02:03]} 27. fxe5 {[%emt 0:01:22]} Qc7 {[%emt 0:01:36]} 28. Qb5 {[%emt 0:00:33]} Be7 {[%emt 0:01:05]} 29. h3 {[%emt 0:02:28]} g6 {[%emt 0:00:47]} 30. Rc1 {[%emt 0:00:48]} Qd8 {[%emt 0:00:25]} 31. Rd1 {[%emt 0:00:18]} Qc7 {[%emt 0:00:34]} 32. Bb6 {[%emt 0:00:33]} Qc2 {[%emt 0:00:49]} 33. Ba7 {[%emt 0:01:06]} Nc6 {[%emt 0:00:14]} 34. Qb7 {[%emt 0:00:57]} Nxa7 {[%emt 0:00:09]} 35. Qxe7 {[%emt 0:00:27]} Nc6 {[%emt 0:00:12]} 36. Qf6 {[%emt 0:00:59]} Qc3 {[%emt 0:01:50]} 37. Bxc6 {[%emt 0:00:55]} Qxc6 {[%emt 0:00:14]} 38. Rd8+ {[%emt 0:01:04]} Rxd8 {[%emt 0:00:09]} 39. Qxd8+ {[%emt 0:00:02]} Kg7 {[%emt 0:00:11]} 40. Qf6+ {[%emt 0:00:27]} Kg8 {[%emt 0:00:11]} 41. Kh2 {[%emt 0:04:21]} Kf8 {[%emt 0:04:21]} 42. Kg3 {[%emt 0:02:44]} Ke8 {[%emt 0:01:01]} 43. h4 {[%emt 0:05:34]} Qd5 {[%emt 0:03:37]} 1/2-1/2

[Event "FIDE CB Open 2022"]
[Site "Ceske Budejovice"]
[Date "2022.07.02"]
[Round "2.48"]
[White "Jodas, Daniel"]
[Black "Zeleny, Tomas"]
[Result "0-1"]
[ECO "B43"]
[WhiteElo "1614"]
[BlackElo "2136"]
[Annotator "NA RC"]
[PlyCount "66"]
[EventDate "2022.07.01"]
[EventType "swiss"]
[EventCountry "CZE"]
[SourceTitle "playchess.com"]
[Source "ChessBase"]
[SourceQuality "1"]
[TimeControl "40/5400+30:1800+30"]

1. e4 {[%emt 0:00:05]} c5 {[%emt 0:00:16]} 2. Nf3 {[%emt 0:00:15]} e6 {[%emt 0:00:30]} 3. d4 {[%emt 0:00:26]} cxd4 {[%emt 0:00:08]} 4. Nxd4 {[%emt 0:00:11]} a6 {[%emt 0:00:05]} 5. Nc3 {[%emt 0:00:27]} Qc7 {[%emt 0:00:09]} 6. a3 {[%emt 0:02:39]} Nf6 {[%emt 0:00:23]} 7. g3 {[%emt 0:02:48]} b5 {[%emt 0:03:15]} 8. Bg2 {[%emt 0:04:12]} Bb7 {[%emt 0:00:04]} 9. O-O {[%emt 0:00:32]} Nc6 {[%emt 0:00:57]} 10. Be3 {[%emt 0:02:59]} Be7 {[%emt 0:01:18]} 11. f4 {[%emt 0:05:08]} d6 {[%emt 0:02:19]} 12. Rf2 {[%emt 0:08:38]} O-O {[%emt 0:12:51]} 13. Nxc6 {[%emt 0:05:03]} Bxc6 {[%emt 0:00:28]} 14. e5 {[%emt 0:01:42]} dxe5 {[%emt 0:02:22]} 15. fxe5 {[%emt 0:08:48]} Qxe5 {[%emt 0:06:16]} 16. Bxc6 {[%emt 0:14:20]} Qxe3 {[%emt 0:00:18]} 17. Bxa8 {[%emt 0:01:08]} Bc5 {[%emt 0:00:22]} 18. Qf3 {[%emt 0:18:02]} Qxf2+ {[%emt 0:15:39]} 19. Qxf2 {[%emt 0:00:05]} Bxf2+ {[%emt 0:00:05]} 20. Kxf2 {[%emt 0:00:04]} Rxa8 {[%emt 0:00:05]} 21. Kf3 {[%emt 0:03:47]} Rd8 {[%emt 0:02:18]} 22. Rd1 {[%emt 0:01:04]} Rxd1 {[%emt 0:00:46]} 23. Nxd1 {[%emt 0:00:04]} Kf8 {[%emt 0:00:47]} 24. b3 {[%emt 0:03:05]} Ke7 {[%emt 0:01:05]} 25. c4 {[%emt 0:00:55]} bxc4 {[%emt 0:01:49]} 26. bxc4 {[%emt 0:00:11]} Kd6 {[%emt 0:00:35]} 27. h3 {[%emt 0:00:57]} Kc5 {[%emt 0:01:34]} 28. Ne3 {[%emt 0:00:56]} Kd4 {[%emt 0:01:05]} 29. Ke2 {[%emt 0:01:19]} Ne4 {[%emt 0:01:37]} 30. g4 {[%emt 0:00:47]} g5 {[%emt 0:02:03]} 31. Nc2+ {[%emt 0:03:09]} Kxc4 {[%emt 0:01:05]} 32. Nb4 {[%emt 0:00:15]} a5 {[%emt 0:10:14]} 33. Nc6 {[%emt 0:00:37]} a4 {[%emt 0:00:24]} 0-1

[Event "FIDE CB Open 2022"]
[Site "Ceske Budejovice"]
[Date "2022.07.02"]
[Round "2.49"]
[White "Vaculik, Martin"]
[Black "Almaini, Aishah Sarhan"]
[Result "1-0"]
[ECO "E73"]
[WhiteElo "2284"]
[BlackElo "1615"]
[Annotator "RC"]
[PlyCount "97"]
[EventDate "2022.07.01"]
[EventType "swiss"]
[EventCountry "CZE"]
[SourceTitle "playchess.com"]
[Source "ChessBase"]
[SourceQuality "1"]
[TimeControl "40/5400+30:1800+30"]

1. d4 {[%emt 0:00:35]} Nf6 {[%emt 0:01:12]} 2. c4 {[%emt 0:00:06]} g6 {[%emt 0:00:15]} 3. Nc3 {[%emt 0:00:06]} Bg7 {[%emt 0:00:18]} 4. e4 {[%emt 0:00:12]} d6 {[%emt 0:00:10]} 5. Be2 {[%emt 0:00:04]} O-O {[%emt 0:00:12]} 6. Bg5 {[%emt 0:00:04]} Nbd7 {[%emt 0:09:05]} 7. Qd2 {[%emt 0:02:59]} e5 {[%emt 0:07:04]} 8. Nf3 {[%emt 0:00:13]} exd4 {[%emt 0:05:26]} 9. Nxd4 {[%emt 0:00:06]} Nc5 {[%emt 0:00:11]} 10. f3 {[%emt 0:01:06]} Ne6 {[%emt 0:02:59]} 11. Be3 {[%emt 0:01:17]} a5 {[%emt 0:09:50]} 12. h4 {[%emt 0:10:45]} Nxd4 {[%emt 0:14:35]} 13. Bxd4 {[%emt 0:02:02]} Nh5 {[%emt 0:02:10]} 14. g4 {[%emt 0:06:34]} Bxd4 {[%emt 0:06:28]} 15. Qxd4 {[%emt 0:00:45]} Qf6 {[%emt 0:00:13]} 16. Qd2 {[%emt 0:17:19]} Nf4 {[%emt 0:09:01]} 17. Nd5 {[%emt 0:21:52]} Nxd5 {[%emt 0:00:27]} 18. cxd5 {[%emt 0:00:07]} Qe7 {[%emt 0:06:08]} 19. O-O-O {[%emt 0:03:57]} b6 {[%emt 0:02:58]} 20. h5 {[%emt 0:03:07]} Ba6 {[%emt 0:03:14]} 21. Bxa6 {[%emt 0:00:59]} Rxa6 {[%emt 0:00:30]} 22. Qd4 {[%emt 0:00:11]} Qg5+ {[%emt 0:02:34]} 23. Kb1 {[%emt 0:03:29]} Re8 {[%emt 0:00:42]} 24. Rc1 {[%emt 0:01:26]} Ra7 {[%emt 0:01:32]} 25. Rc3 {[%emt 0:02:19]} Qe5 {[%emt 0:04:31]} 26. Qxe5 {[%emt 0:00:13]} Rxe5 {[%emt 0:00:05]} 27. hxg6 {[%emt 0:00:14]} hxg6 {[%emt 0:03:55]} 28. Rhc1 {[%emt 0:02:16]} Re7 {[%emt 0:00:12]} 29. Kc2 {[%emt 0:00:10]} g5 {[%emt 0:02:19]} 30. Kd3 {[%emt 0:00:38]} f6 {[%emt 0:00:33]} 31. Rh1 {[%emt 0:01:39]} Rh7 {[%emt 0:02:34]} 32. Rxh7 {[%emt 0:00:22]} Kxh7 {[%emt 0:00:01]} 33. Kc4 {[%emt 0:00:05]} Kg6 {[%emt 0:03:00]} 34. Kb5 {[%emt 0:00:23]} Kf7 {[%emt 0:00:03]} 35. Kc6 {[%emt 0:00:10]} Ke7 {[%emt 0:00:02]} 36. Rc2 {[%emt 0:00:21]} Kd8 {[%emt 0:02:10]} 37. Rh2 {[%emt 0:00:12]} b5 {[%emt 0:01:36]} 38. Kxb5 {[%emt 0:02:42]} Rb7+ {[%emt 0:00:13]} 39. Ka6 {[%emt 0:00:07]} Rb6+ {[%emt 0:00:21]} 40. Kxa5 {[%emt 0:00:14]} Kc8 {[%emt 0:00:04]} 41. b4 {[%emt 0:30:59]} Kd7 {[%emt 0:03:52]} 42. b5 {[%emt 0:00:00]} Rb8 {[%emt 0:00:21]} 43. Kb4 {[%emt 0:00:00]} Rf8 {[%emt 0:00:28]} 44. a4 {[%emt 0:00:00]} Kc8 {[%emt 0:00:04]} 45. a5 {[%emt 0:00:00]} Kb7 {[%emt 0:00:05]} 46. Rh7 {[%emt 0:00:00]} Kb8 {[%emt 0:00:15]} 47. b6 {[%emt 0:00:00]} cxb6 {[%emt 0:00:19]} 48. axb6 {[%emt 0:00:00]} Rc8 {[%emt 0:01:56]} 49. Rd7 {[%emt 0:00:00]} 1-0

[Event "FIDE CB Open 2022"]
[Site "Ceske Budejovice"]
[Date "2022.07.02"]
[Round "2.50"]
[White "Smola, David"]
[Black "Hradek, Matyas"]
[Result "0-1"]
[ECO "C50"]
[WhiteElo "1609"]
[BlackElo "1888"]
[Annotator "NA RC"]
[PlyCount "84"]
[EventDate "2022.07.01"]
[EventType "swiss"]
[EventCountry "CZE"]
[SourceTitle "playchess.com"]
[Source "ChessBase"]
[SourceQuality "1"]
[TimeControl "40/5400+30:1800+30"]

1. e4 {[%emt 0:00:10]} e5 {[%emt 0:00:06]} 2. Nf3 {[%emt 0:00:31]} Nc6 {[%emt 0:00:06]} 3. Bc4 {[%emt 0:00:21]} Bc5 {[%emt 0:00:07]} 4. O-O {[%emt 0:00:43]} Nf6 {[%emt 0:00:44]} 5. d4 {[%emt 0:02:06]} Bxd4 {[%emt 0:08:08]} 6. Nxd4 {[%emt 0:01:19]} Nxd4 {[%emt 0:03:39]} 7. f4 {[%emt 0:01:23]} d6 {[%emt 0:00:17]} 8. fxe5 {[%emt 0:00:45]} dxe5 {[%emt 0:04:05]} 9. Bg5 {[%emt 0:00:30]} Be6 {[%emt 0:00:30]} 10. Bxe6 {[%emt 0:03:35]} Nxe6 {[%emt 0:00:11]} 11. Qxd8+ {[%emt 0:02:19]} Rxd8 {[%emt 0:00:59]} 12. Bxf6 {[%emt 0:01:27]} gxf6 {[%emt 0:00:05]} 13. Rxf6 {[%emt 0:02:45]} Rd1+ {[%emt 0:09:24]} 14. Rf1 {[%emt 0:01:52]} Rd4 {[%emt 0:00:34]} 15. Nc3 {[%emt 0:01:43]} Rg8 {[%emt 0:27:49]} 16. Rf2 {[%emt 0:20:57]} Ng5 {[%emt 0:12:17]} 17. Rf5 {[%emt 0:02:51]} Rd2 {[%emt 0:01:46]} 18. Kf1 {[%emt 0:02:20]} Rxc2 {[%emt 0:03:10]} 19. Nd5 {[%emt 0:07:23]} Rg6 {[%emt 0:05:59]} 20. Rxe5+ {[%emt 0:04:35]} Ne6 {[%emt 0:00:53]} 21. Ne3 {[%emt 0:15:10]} Rxb2 {[%emt 0:02:42]} 22. Rc1 {[%emt 0:02:08]} c6 {[%emt 0:01:04]} 23. Rc2 {[%emt 0:01:52]} Rxc2 {[%emt 0:00:44]} 24. Nxc2 {[%emt 0:00:03]} Rg5 {[%emt 0:00:10]} 25. Rf5 {[%emt 0:01:37]} h5 {[%emt 0:02:42]} 26. Nd4 {[%emt 0:02:41]} Ke7 {[%emt 0:03:09]} 27. Kf2 {[%emt 0:03:09]} f6 {[%emt 0:01:09]} 28. Nxe6 {[%emt 0:03:50]} Kxe6 {[%emt 0:00:13]} 29. Rf3 {[%emt 0:00:56]} Rg4 {[%emt 0:04:40]} 30. Rb3 {[%emt 0:02:14]} b5 {[%emt 0:01:02]} 31. Kf3 {[%emt 0:00:43]} Ke5 {[%emt 0:01:02]} 32. Ra3 {[%emt 0:01:10]} Rf4+ {[%emt 0:00:28]} 33. Kg3 {[%emt 0:01:57]} h4+ {[%emt 0:00:15]} 34. Kh3 {[%emt 0:00:14]} Rxe4 {[%emt 0:00:07]} 35. Rxa7 {[%emt 0:00:52]} Ra4 {[%emt 0:02:55]} 36. Re7+ {[%emt 0:01:31]} Kd5 {[%emt 0:00:55]} 37. Re2 {[%emt 0:00:18]} c5 {[%emt 0:01:02]} 38. g4 {[%emt 0:01:40]} hxg3 {[%emt 0:00:25]} 39. Kxg3 {[%emt 0:00:03]} Re4 {[%emt 0:02:50]} 40. Rf2 {[%emt 0:01:52]} Ke5 {[%emt 0:01:24]} 41. h4 {[%emt 0:31:40]} f5 {[%emt 0:04:06]} 42. h5 {[%emt 0:00:00]} Kd4 {[%emt 0:08:49]} 0-1

[Event "FIDE CB Open 2022"]
[Site "Ceske Budejovice"]
[Date "2022.07.02"]
[Round "2.51"]
[White "Simunek, Jakub Simon"]
[Black "Simajchl, Adam"]
[Result "1-0"]
[ECO "B40"]
[WhiteElo "1887"]
[BlackElo "1610"]
[Annotator "NA RC"]
[PlyCount "31"]
[EventDate "2022.07.01"]
[EventType "swiss"]
[EventCountry "CZE"]
[SourceTitle "playchess.com"]
[Source "ChessBase"]
[SourceQuality "1"]
[TimeControl "40/5400+30:1800+30"]

1. e4 {[%emt 0:00:12]} c5 {[%emt 0:00:13]} 2. Nf3 {[%emt 0:00:22]} e6 {[%emt 0:00:28]} 3. g3 {[%emt 0:00:21]} Qc7 {[%emt 0:01:53]} 4. Bg2 {[%emt 0:00:39]} Nc6 {[%emt 0:00:34]} 5. O-O {[%emt 0:00:59]} Nf6 {[%emt 0:00:49]} 6. Re1 {[%emt 0:00:24]} d6 {[%emt 0:02:03]} 7. c3 {[%emt 0:00:50]} d5 {[%emt 0:20:40]} 8. exd5 {[%emt 0:03:32]} Nxd5 {[%emt 0:01:22]} 9. d4 {[%emt 0:01:13]} cxd4 {[%emt 0:05:13]} 10. Nxd4 {[%emt 0:01:32]} Nxd4 {[%emt 0:03:14]} 11. Qxd4 {[%emt 0:00:46]} Nf6 {[%emt 0:01:07]} 12. Bf4 {[%emt 0:11:12]} Qc5 {[%emt 0:20:06]} 13. Nd2 {[%emt 0:18:40]} Qb6 {[%emt 0:12:35]} 14. Qxb6 {[%emt 0:02:51]} axb6 {[%emt 0:00:09]} 15. Nc4 {[%emt 0:00:09]} b5 {[%emt 0:03:19]} 16. Nb6 {[%emt 0:02:08]} 1-0

[Event "FIDE CB Open 2022"]
[Site "Ceske Budejovice"]
[Date "2022.07.02"]
[Round "2.52"]
[White "Koc, Azra Ece"]
[Black "Jilek, Marcel"]
[Result "1-0"]
[ECO "C46"]
[WhiteElo "1867"]
[BlackElo "1565"]
[Annotator "NA RC"]
[PlyCount "40"]
[EventDate "2022.07.01"]
[EventType "swiss"]
[EventCountry "CZE"]
[SourceTitle "playchess.com"]
[Source "ChessBase"]
[SourceQuality "1"]
[TimeControl "40/5400+30:1800+30"]

1. e4 {[%emt 0:01:04]} e5 {[%emt 0:00:38]} 2. Nf3 {[%emt 0:00:04]} Nc6 {[%emt 0:00:30]} 3. Nc3 {[%emt 0:00:30]} Bc5 {[%emt 0:00:00]} 4. Nxe5 {[%emt 0:03:47]} Nxe5 {[%emt 0:00:56]} 5. d4 {[%emt 0:06:37]} Bxd4 {[%emt 0:00:41]} 6. Qxd4 {[%emt 0:00:30]} f6 {[%emt 0:00:30]} 7. f4 {[%emt 0:00:30]} Nc6 {[%emt 0:00:30]} 8. Qe3 {[%emt 0:00:30]} Nge7 {[%emt 0:00:30]} 9. Bc4 {[%emt 0:00:30]} d6 {[%emt 0:06:16]} 10. a3 {[%emt 0:02:55]} a6 {[%emt 0:00:55]} 11. b4 {[%emt 0:02:42]} b5 {[%emt 0:01:07]} 12. Bb3 {[%emt 0:03:48]} Qd7 {[%emt 0:02:19]} 13. Bb2 {[%emt 0:10:55]} Bb7 {[%emt 0:00:30]} 14. O-O-O {[%emt 0:00:30]} O-O-O {[%emt 0:01:53]} 15. f5 {[%emt 0:03:15]} Kb8 {[%emt 0:01:01]} 16. Be6 {[%emt 0:03:10]} Qe8 {[%emt 0:00:39]} 17. Bb3 {[%emt 0:02:06]} Ne5 {[%emt 0:03:41]} 18. Kb1 {[%emt 0:02:22]} Qf8 {[%emt 0:06:35]} 19. a4 {[%emt 0:08:59]} bxa4 {[%emt 0:07:26]} 20. Rhe1 {[%emt 0:24:30]} Qe8 {[%emt 0:26:03]} 1-0

[Event "FIDE CB Open 2022"]
[Site "Ceske Budejovice"]
[Date "2022.07.02"]
[Round "2.53"]
[White "Kukacka, Ladislav"]
[Black "Kotleska, Roman"]
[Result "0-1"]
[ECO "A09"]
[WhiteElo "1555"]
[BlackElo "1863"]
[Annotator "NA RC"]
[PlyCount "76"]
[EventDate "2022.07.01"]
[EventType "swiss"]
[EventCountry "CZE"]
[SourceTitle "playchess.com"]
[Source "ChessBase"]
[SourceQuality "1"]
[TimeControl "40/5400+30:1800+30"]

1. Nf3 {[%emt 0:00:29]} d5 {[%emt 0:00:32]} 2. c4 {[%emt 0:00:47]} d4 {[%emt 0:00:50]} 3. b4 {[%emt 0:00:56]} c5 {[%emt 0:02:42]} 4. bxc5 {[%emt 0:04:44]} Nc6 {[%emt 0:00:30]} 5. g3 {[%emt 0:04:41]} e5 {[%emt 0:00:30]} 6. Ba3 {[%emt 0:00:30]} Qa5 {[%emt 0:14:13]} 7. Bg2 {[%emt 0:03:54]} Bxc5 {[%emt 0:00:29]} 8. Bxc5 {[%emt 0:01:59]} Qxc5 {[%emt 0:00:05]} 9. d3 {[%emt 0:01:12]} Nf6 {[%emt 0:04:53]} 10. O-O {[%emt 0:01:58]} O-O {[%emt 0:00:58]} 11. Nbd2 {[%emt 0:01:08]} Bd7 {[%emt 0:06:59]} 12. Nb3 {[%emt 0:01:12]} Qe7 {[%emt 0:00:50]} 13. Rb1 {[%emt 0:01:42]} Rab8 {[%emt 0:02:58]} 14. Re1 {[%emt 0:02:06]} Qa3 {[%emt 0:01:34]} 15. Qd2 {[%emt 0:02:29]} Rfe8 {[%emt 0:00:44]} 16. h3 {[%emt 0:02:16]} b5 {[%emt 0:05:33]} 17. c5 {[%emt 0:02:52]} a5 {[%emt 0:02:24]} 18. Nh4 {[%emt 0:06:22]} a4 {[%emt 0:10:29]} 19. Na5 {[%emt 0:01:28]} Nxa5 {[%emt 0:01:38]} 20. Qxa5 {[%emt 0:00:20]} Qxc5 {[%emt 0:00:35]} 21. Rec1 {[%emt 0:02:59]} Qa3 {[%emt 0:05:08]} 22. Qd2 {[%emt 0:05:00]} Rec8 {[%emt 0:01:10]} 23. Rxc8+ {[%emt 0:06:46]} Rxc8 {[%emt 0:00:12]} 24. Qg5 {[%emt 0:08:37]} h6 {[%emt 0:09:43]} 25. Qxe5 {[%emt 0:02:48]} Qxa2 {[%emt 0:00:20]} 26. Re1 {[%emt 0:06:13]} Qd2 {[%emt 0:03:18]} 27. Nf3 {[%emt 0:01:06]} Qc3 {[%emt 0:01:35]} 28. Qxd4 {[%emt 0:05:00]} Qxd4 {[%emt 0:00:29]} 29. Nxd4 {[%emt 0:00:14]} a3 {[%emt 0:00:27]} 30. Ra1 {[%emt 0:01:25]} b4 {[%emt 0:00:21]} 31. g4 {[%emt 0:02:26]} Ba4 {[%emt 0:08:34]} 32. Bb7 {[%emt 0:07:40]} Rb8 {[%emt 0:01:01]} 33. Ba6 {[%emt 0:00:24]} b3 {[%emt 0:00:50]} 34. Bc4 {[%emt 0:00:30]} b2 {[%emt 0:00:23]} 35. Rb1 {[%emt 0:00:15]} Nd7 {[%emt 0:04:30]} 36. f4 {[%emt 0:00:53]} Rb4 {[%emt 0:01:44]} 37. e3 {[%emt 0:01:10]} Rxc4 {[%emt 0:00:27]} 38. dxc4 {[%emt 0:03:48]} a2 {[%emt 0:00:23]} 0-1

[Event "FIDE CB Open 2022"]
[Site "Ceske Budejovice"]
[Date "2022.07.02"]
[Round "2.54"]
[White "Simacek, Vaclav"]
[Black "Krejci, Vera Marie"]
[Result "1/2-1/2"]
[ECO "A00"]
[WhiteElo "1856"]
[BlackElo "1554"]
[Annotator "NA RC"]
[PlyCount "68"]
[EventDate "2022.07.01"]
[EventType "swiss"]
[EventCountry "CZE"]
[SourceTitle "playchess.com"]
[Source "ChessBase"]
[SourceQuality "1"]
[TimeControl "40/5400+30:1800+30"]

1. g4 {[%emt 0:00:32]} d5 {[%emt 0:00:13]} 2. Bg2 {[%emt 0:00:05]} Bxg4 {[%emt 0:00:15]} 3. c4 {[%emt 0:00:06]} c6 {[%emt 0:04:21]} 4. Qb3 {[%emt 0:00:20]} Qb6 {[%emt 0:01:44]} 5. cxd5 {[%emt 0:00:49]} Qxb3 {[%emt 0:01:29]} 6. axb3 {[%emt 0:00:07]} Nf6 {[%emt 0:00:53]} 7. Nc3 {[%emt 0:01:36]} g6 {[%emt 0:02:44]} 8. dxc6 {[%emt 0:00:15]} bxc6 {[%emt 0:04:49]} 9. Nb5 {[%emt 0:00:26]} Kd7 {[%emt 0:04:33]} 10. h3 {[%emt 0:03:29]} Be6 {[%emt 0:01:51]} 11. Nf3 {[%emt 0:00:13]} cxb5 {[%emt 0:05:09]} 12. Ne5+ {[%emt 0:00:40]} Kd6 {[%emt 0:00:09]} 13. Nxf7+ {[%emt 0:01:21]} Bxf7 {[%emt 0:00:07]} 14. Bxa8 {[%emt 0:00:04]} Bxb3 {[%emt 0:02:26]} 15. d3 {[%emt 0:01:31]} Bg7 {[%emt 0:08:47]} 16. Rxa7 {[%emt 0:00:30]} Bd5 {[%emt 0:06:16]} 17. Bxd5 {[%emt 0:01:38]} Nxd5 {[%emt 0:00:10]} 18. O-O {[%emt 0:05:12]} Nc6 {[%emt 0:05:42]} 19. Rb7 {[%emt 0:02:15]} Rb8 {[%emt 0:01:29]} 20. Rxb8 {[%emt 0:00:14]} Nxb8 {[%emt 0:00:01]} 21. b3 {[%emt 0:05:04]} Nc6 {[%emt 0:03:05]} 22. e4 {[%emt 0:03:42]} Nc3 {[%emt 0:06:57]} 23. Bd2 {[%emt 0:04:36]} Ne2+ {[%emt 0:02:00]} 24. Kg2 {[%emt 0:00:23]} Ned4 {[%emt 0:02:23]} 25. Rb1 {[%emt 0:14:31]} Nc2 {[%emt 0:08:01]} 26. f4 {[%emt 0:03:04]} Bd4 {[%emt 0:03:46]} 27. b4 {[%emt 0:03:57]} Be3 {[%emt 0:03:39]} 28. Bxe3 {[%emt 0:04:32]} Nxe3+ {[%emt 0:00:00]} 29. Kf3 {[%emt 0:00:04]} Nc2 {[%emt 0:00:00]} 30. Rb2 {[%emt 0:00:32]} N6xb4 {[%emt 0:01:54]} 31. Ke2 {[%emt 0:05:30]} Nd4+ {[%emt 0:01:03]} 32. Kd2 {[%emt 0:00:41]} Nbc6 {[%emt 0:00:41]} 33. Kc3 {[%emt 0:07:15]} Kc5 {[%emt 0:04:14]} 34. Rg2 {[%emt 0:01:40]} b4+ {[%emt 0:03:19]} 1/2-1/2

[Event "FIDE CB Open 2022"]
[Site "Ceske Budejovice"]
[Date "2022.07.02"]
[Round "2.55"]
[White "Kosut, Tomas"]
[Black "Hladky, Mikulas"]
[Result "1-0"]
[ECO "C54"]
[WhiteElo "1820"]
[BlackElo "1549"]
[Annotator "NA RC"]
[PlyCount "57"]
[EventDate "2022.07.01"]
[EventType "swiss"]
[EventCountry "CZE"]
[SourceTitle "playchess.com"]
[Source "ChessBase"]
[SourceQuality "1"]
[TimeControl "40/5400+30:1800+30"]

1. e4 {[%emt 0:00:11]} e5 {[%emt 0:00:14]} 2. Nf3 {[%emt 0:00:11]} Nc6 {[%emt 0:00:16]} 3. Bc4 {[%emt 0:00:15]} Bc5 {[%emt 0:00:26]} 4. c3 {[%emt 0:00:28]} d6 {[%emt 0:00:16]} 5. O-O {[%emt 0:02:18]} Nf6 {[%emt 0:00:45]} 6. d3 {[%emt 0:02:57]} h6 {[%emt 0:00:31]} 7. Be3 {[%emt 0:00:12]} Bb6 {[%emt 0:00:21]} 8. Nbd2 {[%emt 0:02:50]} O-O {[%emt 0:00:15]} 9. a4 {[%emt 0:00:30]} Na5 {[%emt 0:03:23]} 10. Ba2 {[%emt 0:02:44]} c5 {[%emt 0:02:49]} 11. b4 {[%emt 0:05:50]} cxb4 {[%emt 0:00:37]} 12. cxb4 {[%emt 0:00:09]} Nc6 {[%emt 0:01:45]} 13. b5 {[%emt 0:04:16]} Ne7 {[%emt 0:02:39]} 14. Nc4 {[%emt 0:02:59]} Bxe3 {[%emt 0:00:33]} 15. Nxe3 {[%emt 0:01:00]} Be6 {[%emt 0:01:12]} 16. Nc4 {[%emt 0:18:01]} Rc8 {[%emt 0:00:41]} 17. Qe2 {[%emt 0:02:52]} Ng6 {[%emt 0:01:46]} 18. Rfd1 {[%emt 0:19:20]} Qe7 {[%emt 0:09:08]} 19. Rac1 {[%emt 0:06:29]} Rfe8 {[%emt 0:00:41]} 20. Qb2 {[%emt 0:06:36]} Bg4 {[%emt 0:01:17]} 21. Kh1 {[%emt 0:15:29]} Bxf3 {[%emt 0:03:05]} 22. gxf3 {[%emt 0:00:02]} Nf4 {[%emt 0:04:26]} 23. Ne3 {[%emt 0:02:46]} Qd7 {[%emt 0:03:00]} 24. Rxc8 {[%emt 0:00:50]} Rxc8 {[%emt 0:00:21]} 25. Rg1 {[%emt 0:01:20]} Nxd3 {[%emt 0:00:54]} 26. Qd2 {[%emt 0:00:13]} Nf4 {[%emt 0:00:44]} 27. Nf5 {[%emt 0:00:14]} Ng6 {[%emt 0:01:07]} 28. Rxg6 {[%emt 0:00:16]} Ne8 {[%emt 0:01:24]} 29. Qxh6 {[%emt 0:00:55]} 1-0

[Event "FIDE CB Open 2022"]
[Site "Ceske Budejovice"]
[Date "2022.07.03"]
[Round "3.1"]
[White "Roshka, Yevgeniy"]
[Black "Walek, Petr"]
[Result "1-0"]
[ECO "E70"]
[WhiteElo "2497"]
[BlackElo "2237"]
[Annotator "RC"]
[PlyCount "83"]
[EventDate "2022.07.01"]
[EventType "swiss"]
[EventCountry "CZE"]
[SourceTitle "playchess.com"]
[Source "ChessBase"]
[SourceQuality "1"]
[TimeControl "40/5400+30:1800+30"]

1. d4 {[%emt 0:00:06]} Nf6 {[%emt 0:00:05]} 2. c4 {[%emt 0:00:06]} g6 {[%emt 0:00:30]} 3. Nc3 {[%emt 0:00:30]} Bg7 {[%emt 0:00:10]} 4. e4 {[%emt 0:00:05]} d6 {[%emt 0:00:05]} 5. Nge2 {[%emt 0:00:04]} O-O {[%emt 0:10:48]} 6. Ng3 {[%emt 0:00:24]} e5 {[%emt 0:01:16]} 7. d5 {[%emt 0:00:19]} a5 {[%emt 0:00:37]} 8. Be2 {[%emt 0:00:13]} Na6 {[%emt 0:02:18]} 9. h4 {[%emt 0:00:02]} h5 {[%emt 0:01:32]} 10. Bg5 {[%emt 0:00:06]} Qe8 {[%emt 0:03:59]} 11. Qd2 {[%emt 0:00:07]} Kh7 {[%emt 0:11:06]} 12. O-O-O {[%emt 0:00:38]} Ng8 {[%emt 0:14:04]} 13. Rdg1 {[%emt 0:04:23]} f6 {[%emt 0:09:12]} 14. Be3 {[%emt 0:00:06]} Nc5 {[%emt 0:01:20]} 15. Nf1 {[%emt 0:06:05]} Nh6 {[%emt 0:00:45]} 16. Nh2 {[%emt 0:06:18]} f5 {[%emt 0:06:07]} 17. exf5 {[%emt 0:02:39]} Nxf5 {[%emt 0:03:09]} 18. Bxc5 {[%emt 0:01:04]} dxc5 {[%emt 0:00:10]} 19. Nf3 {[%emt 0:00:08]} Bh6 {[%emt 0:10:41]} 20. Ng5+ {[%emt 0:00:03]} Bxg5 {[%emt 0:00:12]} 21. hxg5 {[%emt 0:01:44]} Nd4 {[%emt 0:00:09]} 22. Ne4 {[%emt 0:01:30]} Bf5 {[%emt 0:00:50]} 23. Bd3 {[%emt 0:02:43]} Bxe4 {[%emt 0:05:17]} 24. Bxe4 {[%emt 0:00:01]} Kg7 {[%emt 0:01:25]} 25. Kb1 {[%emt 0:02:39]} Rf4 {[%emt 0:02:56]} 26. Qe3 {[%emt 0:00:24]} Qf7 {[%emt 0:04:38]} 27. f3 {[%emt 0:00:40]} h4 {[%emt 0:02:54]} 28. g3 {[%emt 0:05:29]} hxg3 {[%emt 0:05:42]} 29. Rxg3 {[%emt 0:00:03]} Nf5 {[%emt 0:00:54]} 30. Qc3 {[%emt 0:00:01]} Re8 {[%emt 0:02:02]} 31. Rgh3 {[%emt 0:00:01]} Qg8 {[%emt 0:00:26]} 32. Qxa5 {[%emt 0:02:39]} b6 {[%emt 0:00:31]} 33. Qa7 {[%emt 0:00:30]} Re7 {[%emt 0:00:00]} 34. Rh8 {[%emt 0:01:54]} Qxh8 {[%emt 0:00:40]} 35. Rxh8 {[%emt 0:00:02]} Kxh8 {[%emt 0:00:33]} 36. Bxf5 {[%emt 0:00:01]} Rxf5 {[%emt 0:00:41]} 37. d6 {[%emt 0:00:02]} Re8 {[%emt 0:00:36]} 38. Qxc7 {[%emt 0:00:28]} Rff8 {[%emt 0:00:36]} 39. d7 {[%emt 0:00:02]} Rd8 {[%emt 0:00:21]} 40. Qxe5+ {[%emt 0:00:02]} Kh7 {[%emt 0:00:22]} 41. Qe7+ {[%emt 0:30:02]} Kg8 {[%emt 0:01:09]} 42. f4 {[%emt 0:00:00]} 1-0